[Event "10th Tal Memorial 2016 - Blitz"]
[Site "Moscow"]
[Date "2016.09.25"]
[Round "7"]
[White "Mamedyarov, Shakhriyar"]
[Black "Tomashevsky, Evgeny"]
[Result "1-0"]
[ECO "D37"]
[WhiteElo "2761"]
[BlackElo "2731"]
[Annotator "ChessBase"]
[PlyCount "59"]
[EventDate "2016.??.??"]
[EventType "tourn"]
[EventCountry "RUS"]
[SourceTitle "playchess.com"]
[Source "ChessBase"]
[TimeControl "180+2"]

1. d4 {[%emt 0:00:00]} Nf6 {[%emt 0:00:00]} 2. c4 {[%emt 0:00:00]} e6 {[%emt 0:
00:01]} 3. Nf3 {[%emt 0:00:01]} d5 {[%emt 0:00:01]} 4. Nc3 {[%emt 0:00:01]} Be7
{[%emt 0:00:02]} 5. Bf4 {[%emt 0:00:04]} O-O {[%emt 0:00:03]} 6. e3 {[%emt 0:
00:01]} Nbd7 {[%emt 0:00:04]} 7. a3 {[%emt 0:00:03]} c6 {[%emt 0:00:08]} 8. Rc1
{[%emt 0:00:03]} b6 {[%emt 0:00:07]} 9. Bd3 {[%emt 0:00:14]} dxc4 {[%emt 0:00:
14]} 10. Bxc4 {[%emt 0:00:02]} Bb7 {[%emt 0:00:01]} 11. O-O {[%emt 0:00:02]} a6
{[%emt 0:00:35]} 12. e4 {[%emt 0:00:16]} b5 {[%emt 0:00:03]} 13. Ba2 {[%emt 0:
00:03]} Rc8 {[%emt 0:00:25]} 14. e5 {[%emt 0:00:14]} Nd5 {[%emt 0:00:01]} 15.
Nxd5 {[%emt 0:00:02]} cxd5 {[%emt 0:00:04]} 16. Rxc8 {[%emt 0:00:01]} Qxc8 {
[%emt 0:00:03]} 17. h4 {[%emt 0:00:01]} f6 {[%emt 0:00:46]} 18. exf6 {[%emt 0:
00:18]} Nxf6 {[%emt 0:00:02]} 19. Bg5 {[%emt 0:00:01]} Qd8 {[%emt 0:00:28]} 20.
Ne5 {[%emt 0:00:26]} Nd7 {[%emt 0:00:13]} 21. Qg4 {[%emt 0:00:05]} Nxe5 {
[%emt 0:00:05]} 22. Qxe6+ Rf7 23. Qxe5 {[%emt 0:00:28]} h6 {[%emt 0:00:04]} 24.
Bxe7 {[%emt 0:00:02]} Rxe7 {[%emt 0:00:01]} 25. Qf5 {[%emt 0:00:06]} Rf7 {
[%emt 0:00:02]} 26. Qg4 {[%emt 0:00:05]} Qf6 {[%emt 0:00:01]} 27. Bb1 {[%emt 0:
00:20]} Qf4 {[%emt 0:00:03]} 28. Qg6 {[%emt 0:00:07]} Kf8 {[%emt 0:00:14]} 29.
Qh7 {[%emt 0:00:04]} Rf6 {[%emt 0:00:02]} 30. Bg6 {[%emt 0:00:05]} 1-0

[Event "10th Tal Memorial 2016 - Blitz"]
[Site "Moscow"]
[Date "2016.09.25"]
[Round "7"]
[White "Svidler, Peter"]
[Black "Kramnik, Vladimir"]
[Result "1-0"]
[ECO "D78"]
[WhiteElo "2745"]
[BlackElo "2808"]
[Annotator "ChessBase"]
[PlyCount "79"]
[EventDate "2016.??.??"]
[EventType "tourn"]
[EventCountry "RUS"]
[SourceTitle "playchess.com"]
[Source "ChessBase"]
[TimeControl "180+2"]

1. Nf3 {[%emt 0:00:00]} d5 {[%emt 0:00:00]} 2. g3 {[%emt 0:00:00]} g6 {[%emt 0:
00:00]} 3. Bg2 {[%emt 0:00:02]} Bg7 {[%emt 0:00:00]} 4. d4 {[%emt 0:00:03]} Nf6
{[%emt 0:00:02]} 5. O-O {[%emt 0:00:01]} O-O {[%emt 0:00:01]} 6. c4 {[%emt 0:
00:01]} c6 {[%emt 0:00:01]} 7. Qb3 {[%emt 0:00:04]} Qb6 {[%emt 0:00:02]} 8. Nc3
{[%emt 0:00:01]} Bf5 {[%emt 0:00:04]} 9. h3 {[%emt 0:00:30]} Rd8 {[%emt 0:00:
12]} 10. Bf4 {[%emt 0:00:25]} dxc4 {[%emt 0:00:10]} 11. Qxc4 {[%emt 0:00:01]}
Nbd7 {[%emt 0:00:12]} 12. Ng5 {[%emt 0:00:06]} e6 {[%emt 0:00:30]} 13. e4 {
[%emt 0:00:03]} h6 {[%emt 0:00:12]} 14. Nxf7 {[%emt 0:00:02]} Kxf7 {[%emt 0:00:
01]} 15. exf5 {[%emt 0:00:01]} gxf5 {[%emt 0:00:01]} 16. Rfe1 {[%emt 0:00:10]}
Nf8 {[%emt 0:00:01]} 17. Rad1 {[%emt 0:00:12]} Rd7 {[%emt 0:00:05]} 18. Na4 {
[%emt 0:00:04]} Qd8 {[%emt 0:00:12]} 19. Nc5 {[%emt 0:00:02]} Re7 {[%emt 0:00:
00]} 20. Qb3 {[%emt 0:00:11]} b6 {[%emt 0:00:24]} 21. Nd3 {[%emt 0:00:02]} Nd5
{[%emt 0:00:02]} 22. Bxh6 {[%emt 0:00:12]} Ng6 {[%emt 0:00:23]} 23. Bxg7 {
[%emt 0:00:22]} Kxg7 {[%emt 0:00:01]} 24. h4 {[%emt 0:00:02]} Qd6 {[%emt 0:00:
07]} 25. h5 {[%emt 0:00:04]} Nf8 {[%emt 0:00:04]} 26. Ne5 {[%emt 0:00:02]} Rc8
{[%emt 0:00:12]} 27. Rc1 {[%emt 0:00:21]} Rec7 {[%emt 0:00:02]} 28. g4 {
[%emt 0:00:09]} fxg4 {[%emt 0:00:24]} 29. Qg3 {[%emt 0:00:16]} Nf6 {[%emt 0:00:
02]} 30. h6+ {[%emt 0:00:04]} Kg8 {[%emt 0:00:02]} 31. Nxg4 {[%emt 0:00:04]}
Qxg3 {[%emt 0:00:03]} 32. Nxf6+ {[%emt 0:00:01]} Kf7 {[%emt 0:00:00]} 33. fxg3
Kxf6 {[%emt 0:00:01]} 34. Re5 {[%emt 0:00:11]} Kg6 {[%emt 0:00:06]} 35. Be4+ {
[%emt 0:00:01]} Kxh6 {[%emt 0:00:05]} 36. Kg2 {[%emt 0:00:01]} Kg7 {[%emt 0:00:
08]} 37. Rf1 {[%emt 0:00:03]} c5 {[%emt 0:00:14]} 38. Rg5+ {[%emt 0:00:01]} Kh6
{[%emt 0:00:01]} 39. Rg4 {[%emt 0:00:02]} Kh5 {[%emt 0:00:04]} 40. Bf3 {
[%emt 0:00:01]} 1-0

[Event "10th Tal Memorial 2016 - Blitz"]
[Site "Moscow"]
[Date "2016.09.25"]
[Round "8"]
[White "Anand, Viswanathan"]
[Black "Li, Chao b"]
[Result "0-1"]
[ECO "A06"]
[WhiteElo "2776"]
[BlackElo "2746"]
[Annotator "ChessBase"]
[PlyCount "68"]
[EventDate "2016.??.??"]
[EventType "tourn"]
[EventCountry "RUS"]
[SourceTitle "playchess.com"]
[Source "ChessBase"]
[TimeControl "180+2"]

1. Nf3 {[%emt 0:00:00]} d5 {[%emt 0:00:04]} 2. g3 {[%emt 0:00:01]} g6 {[%emt 0:
00:02]} 3. Bg2 Bg7 {[%emt 0:00:02]} 4. c4 {[%emt 0:00:09]} Nf6 {[%emt 0:00:05]}
5. cxd5 {[%emt 0:00:01]} Nxd5 {[%emt 0:00:01]} 6. O-O {[%emt 0:00:02]} c5 {
[%emt 0:00:09]} 7. Nc3 {[%emt 0:00:05]} O-O {[%emt 0:00:13]} 8. Qb3 {[%emt 0:
00:04]} e6 {[%emt 0:00:23]} 9. d3 {[%emt 0:00:04]} Nc6 {[%emt 0:00:03]} 10. Bg5
{[%emt 0:00:02]} Qd7 {[%emt 0:00:04]} 11. Ne4 {[%emt 0:00:43]} b6 {[%emt 0:00:
02]} 12. h4 {[%emt 0:00:12]} Bb7 {[%emt 0:00:06]} 13. h5 {[%emt 0:00:02]} h6 {
[%emt 0:00:08]} 14. Bd2 {[%emt 0:00:07]} g5 {[%emt 0:00:03]} 15. Rfc1 {[%emt 0:
00:13]} f5 {[%emt 0:00:12]} 16. Nc3 {[%emt 0:00:02]} Kh7 {[%emt 0:00:19]} 17.
Nxd5 {[%emt 0:00:14]} exd5 {[%emt 0:00:02]} 18. Bc3 {[%emt 0:00:07]} d4 {
[%emt 0:00:16]} 19. Bd2 {[%emt 0:00:02]} Rae8 {[%emt 0:00:01]} 20. Qd1 {
[%emt 0:00:03]} Ne5 {[%emt 0:00:04]} 21. b4 {[%emt 0:00:07]} Bxf3 {[%emt 0:00:
18]} 22. Bxf3 {[%emt 0:00:03]} Nxf3+ {[%emt 0:00:02]} 23. exf3 {[%emt 0:00:01]}
Qd5 {[%emt 0:00:02]} 24. bxc5 {[%emt 0:00:10]} bxc5 {[%emt 0:00:01]} 25. f4 {
[%emt 0:00:01]} g4 {[%emt 0:00:04]} 26. Rab1 {[%emt 0:00:05]} Rf6 {[%emt 0:00:
17]} 27. Rb5 {[%emt 0:00:04]} Rc6 {[%emt 0:00:01]} 28. a4 {[%emt 0:00:05]} a6 {
[%emt 0:00:02]} 29. Rbb1 {[%emt 0:00:22]} Rce6 {[%emt 0:00:02]} 30. Rc2 {
[%emt 0:00:13]} Re2 {[%emt 0:00:05]} 31. Ba5 {[%emt 0:00:08]} Qf3 {[%emt 0:00:
04]} 32. Rxe2 {[%emt 0:00:02]} Rxe2 {[%emt 0:00:01]} 33. Be1 {[%emt 0:00:01]}
c4 {[%emt 0:00:05]} 34. Rc1 {[%emt 0:00:26]} cxd3 {[%emt 0:00:08]} 0-1

[Event "10th Tal Memorial 2016 - Blitz"]
[Site "Moscow"]
[Date "2016.09.25"]
[Round "8"]
[White "Aronian, Levon"]
[Black "Svidler, Peter"]
[Result "1/2-1/2"]
[ECO "A06"]
[WhiteElo "2795"]
[BlackElo "2745"]
[Annotator "ChessBase"]
[PlyCount "66"]
[EventDate "2016.??.??"]
[EventType "tourn"]
[EventCountry "RUS"]
[SourceTitle "playchess.com"]
[Source "ChessBase"]
[TimeControl "180+2"]

1. Nf3 {[%emt 0:00:00]} d5 {[%emt 0:00:00]} 2. d4 {[%emt 0:00:02]} Bf5 {
[%emt 0:00:01]} 3. c4 {[%emt 0:00:04]} e6 {[%emt 0:00:01]} 4. Nc3 {[%emt 0:00:
02]} Nf6 {[%emt 0:00:05]} 5. Bg5 {[%emt 0:00:22]} c6 {[%emt 0:00:01]} 6. Qb3 {
[%emt 0:00:04]} Qb6 {[%emt 0:00:04]} 7. e3 {[%emt 0:00:10]} Nbd7 {[%emt 0:00:
10]} 8. Be2 {[%emt 0:00:20]} dxc4 {[%emt 0:00:13]} 9. Bxc4 {[%emt 0:00:02]}
Qxb3 {[%emt 0:00:24]} 10. Bxb3 {[%emt 0:00:03]} Ne4 {[%emt 0:00:05]} 11. Nxe4 {
[%emt 0:00:16]} Bxe4 {[%emt 0:00:01]} 12. Ke2 {[%emt 0:00:02]} Bd6 {[%emt 0:00:
04]} 13. Rhc1 {[%emt 0:00:11]} a5 {[%emt 0:00:09]} 14. Bh4 {[%emt 0:00:27]} a4
{[%emt 0:00:03]} 15. Bc4 {[%emt 0:00:02]} Nb6 {[%emt 0:00:17]} 16. Bd3 {
[%emt 0:00:03]} Bxd3+ {[%emt 0:00:01]} 17. Kxd3 {[%emt 0:00:01]} f6 {[%emt 0:
00:05]} 18. Bg3 {[%emt 0:00:03]} Be7 {[%emt 0:00:01]} 19. Ke2 {[%emt 0:00:06]}
Kf7 {[%emt 0:00:01]} 20. Ne1 {[%emt 0:00:02]} Rhc8 {[%emt 0:00:07]} 21. Nd3 {
[%emt 0:00:02]} Nd7 {[%emt 0:00:01]} 22. Rc2 {[%emt 0:00:07]} Ra5 {[%emt 0:00:
06]} 23. Rac1 {[%emt 0:00:26]} e5 {[%emt 0:00:02]} 24. dxe5 {[%emt 0:00:06]}
Nxe5 {[%emt 0:00:10]} 25. Bxe5 {[%emt 0:00:06]} fxe5 {[%emt 0:00:00]} 26. Rc4 {
[%emt 0:00:02]} Ke6 {[%emt 0:00:06]} 27. Re4 {[%emt 0:00:01]} Bd6 {[%emt 0:00:
13]} 28. Rcc4 {[%emt 0:00:18]} Rca8 {[%emt 0:00:02]} 29. f4 {[%emt 0:00:06]}
Kf5 {[%emt 0:00:39]} 30. g4+ {[%emt 0:00:13]} Kf6 {[%emt 0:00:03]} 31. Kf3 {
[%emt 0:00:05]} exf4 {[%emt 0:00:02]} 32. exf4 {[%emt 0:00:01]} Rd5 {[%emt 0:
00:01]} 33. Rcd4 {[%emt 0:00:04]} Rxd4 {[%emt 0:00:03]} 1/2-1/2

[Event "10th Tal Memorial 2016 - Blitz"]
[Site "Moscow"]
[Date "2016.09.25"]
[Round "8"]
[White "Mamedyarov, Shakhriyar"]
[Black "Giri, Anish"]
[Result "1/2-1/2"]
[ECO "D90"]
[WhiteElo "2761"]
[BlackElo "2755"]
[Annotator "ChessBase"]
[PlyCount "131"]
[EventDate "2016.??.??"]
[EventType "tourn"]
[EventCountry "RUS"]
[SourceTitle "playchess.com"]
[Source "ChessBase"]
[TimeControl "180+2"]

1. d4 {[%emt 0:00:00]} Nf6 {[%emt 0:00:00]} 2. c4 {[%emt 0:00:00]} g6 {[%emt 0:
00:00]} 3. Nc3 d5 4. Nf3 {[%emt 0:00:01]} Bg7 {[%emt 0:00:00]} 5. cxd5 Nxd5 {
[%emt 0:00:01]} 6. Bg5 {[%emt 0:00:02]} Nxc3 {[%emt 0:00:01]} 7. bxc3 {[%emt 0:
00:01]} c5 {[%emt 0:00:01]} 8. e3 {[%emt 0:00:01]} Bg4 {[%emt 0:00:02]} 9. Bb5+
{[%emt 0:00:07]} Nd7 {[%emt 0:00:05]} 10. h3 {[%emt 0:00:07]} Bxf3 {[%emt 0:00:
08]} 11. Qxf3 {[%emt 0:00:02]} O-O {[%emt 0:00:27]} 12. Qxb7 {[%emt 0:00:19]}
Nf6 {[%emt 0:00:07]} 13. Bxf6 {[%emt 0:00:45]} Bxf6 {[%emt 0:00:01]} 14. O-O {
[%emt 0:00:03]} Qa5 {[%emt 0:00:04]} 15. Qa6 {[%emt 0:00:07]} Qc7 {[%emt 0:00:
49]} 16. Rab1 {[%emt 0:00:08]} Rab8 {[%emt 0:00:01]} 17. Bc4 {[%emt 0:00:08]}
Kg7 {[%emt 0:00:10]} 18. Rb3 {[%emt 0:00:21]} Rfc8 {[%emt 0:00:24]} 19. Rfb1 {
[%emt 0:00:14]} Rb6 {[%emt 0:00:06]} 20. Rxb6 {[%emt 0:00:13]} axb6 {[%emt 0:
00:01]} 21. Bb3 {[%emt 0:00:14]} e5 {[%emt 0:00:33]} 22. dxc5 {[%emt 0:00:17]}
Qxc5 {[%emt 0:00:01]} 23. Rd1 {[%emt 0:00:15]} Rc7 {[%emt 0:00:07]} 24. c4 {
[%emt 0:00:03]} h5 {[%emt 0:00:08]} 25. Qb5 {[%emt 0:00:03]} Be7 {[%emt 0:00:
10]} 26. Rd5 {[%emt 0:00:08]} Qxb5 {[%emt 0:00:02]} 27. Rxb5 {[%emt 0:00:02]}
Bc5 {[%emt 0:00:01]} 28. a4 {[%emt 0:00:00]} Ra7 {[%emt 0:00:00]} 29. Bc2 {
[%emt 0:00:02]} Kf6 {[%emt 0:00:04]} 30. g3 {[%emt 0:00:01]} Ke6 {[%emt 0:00:
01]} 31. Kg2 {[%emt 0:00:01]} Ra5 {[%emt 0:00:07]} 32. Rb1 {[%emt 0:00:01]} Ra7
{[%emt 0:00:00]} 33. g4 {[%emt 0:00:04]} hxg4 {[%emt 0:00:01]} 34. hxg4 {
[%emt 0:00:00]} Rd7 {[%emt 0:00:01]} 35. Be4 {[%emt 0:00:05]} Rd2 {[%emt 0:00:
01]} 36. Bd5+ {[%emt 0:00:03]} Ke7 {[%emt 0:00:01]} 37. a5 {[%emt 0:00:05]}
bxa5 {[%emt 0:00:04]} 38. Rb7+ {[%emt 0:00:01]} Kd6 {[%emt 0:00:04]} 39. Kg3 {
[%emt 0:00:06]} f5 {[%emt 0:00:01]} 40. Rg7 {[%emt 0:00:01]} f4+ {[%emt 0:00:
02]} 41. Kf3 {[%emt 0:00:01]} fxe3 {[%emt 0:00:02]} 42. Rxg6+ {[%emt 0:00:01]}
Kd7 {[%emt 0:00:00]} 43. fxe3 {[%emt 0:00:01]} Rd3 {[%emt 0:00:01]} 44. Ke4 {
[%emt 0:00:02]} Rxe3+ {[%emt 0:00:01]} 45. Kf5 {[%emt 0:00:01]} Re1 {[%emt 0:
00:05]} 46. g5 {[%emt 0:00:02]} Bd4 {[%emt 0:00:02]} 47. Ra6 {[%emt 0:00:04]}
Rf1+ {[%emt 0:00:04]} 48. Kg4 {[%emt 0:00:02]} Rg1+ {[%emt 0:00:02]} 49. Kh5 {
[%emt 0:00:03]} Be3 {[%emt 0:00:08]} 50. g6 {[%emt 0:00:01]} Ke7 {[%emt 0:00:
05]} 51. Re6+ {[%emt 0:00:01]} Kf8 {[%emt 0:00:04]} 52. Rf6+ {[%emt 0:00:03]}
Ke8 {[%emt 0:00:03]} 53. Re6+ {[%emt 0:00:06]} Kf8 {[%emt 0:00:00]} 54. Rxe5 {
[%emt 0:00:01]} Bd4 {[%emt 0:00:08]} 55. Rf5+ {[%emt 0:00:01]} Ke7 {[%emt 0:00:
01]} 56. Rf4 {[%emt 0:00:06]} Be5 {[%emt 0:00:03]} 57. Rf5 {[%emt 0:00:00]} Bd4
{[%emt 0:00:00]} 58. Bf7 {[%emt 0:00:02]} a4 {[%emt 0:00:02]} 59. c5 {[%emt 0:
00:03]} a3 {[%emt 0:00:03]} 60. c6 {[%emt 0:00:01]} Rc1 {[%emt 0:00:02]} 61.
Rf4 {[%emt 0:00:03]} Rc5+ {[%emt 0:00:03]} 62. Kg4 {[%emt 0:00:02]} Bb2 {
[%emt 0:00:05]} 63. Re4+ {[%emt 0:00:01]} Kd6 {[%emt 0:00:02]} 64. Re6+ {
[%emt 0:00:05]} Kc7 {[%emt 0:00:01]} 65. Re2 {[%emt 0:00:02]} Rxc6 {[%emt 0:00:
01]} 66. Rd2 {[%emt 0:00:02]} 1/2-1/2

[Event "10th Tal Memorial 2016 - Blitz"]
[Site "Moscow"]
[Date "2016.09.25"]
[Round "8"]
[White "Tomashevsky, Evgeny"]
[Black "Nepomniachtchi, Ian"]
[Result "0-1"]
[ECO "A32"]
[WhiteElo "2731"]
[BlackElo "2740"]
[Annotator "ChessBase"]
[PlyCount "94"]
[EventDate "2016.??.??"]
[EventType "tourn"]
[EventCountry "RUS"]
[SourceTitle "playchess.com"]
[Source "ChessBase"]
[TimeControl "180+2"]

1. Nf3 {[%emt 0:00:00]} c5 {[%emt 0:00:00]} 2. c4 {[%emt 0:00:00]} Nf6 {
[%emt 0:00:00]} 3. d4 {[%emt 0:00:08]} cxd4 {[%emt 0:00:01]} 4. Nxd4 {[%emt 0:
00:00]} e6 {[%emt 0:00:01]} 5. Nc3 {[%emt 0:00:13]} d5 {[%emt 0:00:01]} 6. cxd5
{[%emt 0:00:04]} Nxd5 {[%emt 0:00:01]} 7. Bd2 {[%emt 0:00:01]} Nf6 {[%emt 0:00:
00]} 8. Nb3 {[%emt 0:00:15]} b6 {[%emt 0:00:04]} 9. e4 {[%emt 0:00:09]} Bb7 {
[%emt 0:00:01]} 10. Bb5+ {[%emt 0:00:02]} Nbd7 {[%emt 0:00:05]} 11. Qe2 {
[%emt 0:00:11]} a6 {[%emt 0:00:05]} 12. Bd3 {[%emt 0:00:02]} Be7 {[%emt 0:00:
08]} 13. O-O {[%emt 0:00:11]} O-O {[%emt 0:00:01]} 14. Rad1 {[%emt 0:00:06]}
Qb8 {[%emt 0:00:03]} 15. f4 {[%emt 0:00:20]} Rd8 {[%emt 0:00:18]} 16. e5 {
[%emt 0:00:21]} Nd5 {[%emt 0:00:03]} 17. Ne4 {[%emt 0:00:01]} Nf8 {[%emt 0:00:
03]} 18. Nd4 {[%emt 0:00:34]} Nb4 {[%emt 0:00:06]} 19. Bxb4 {[%emt 0:00:03]}
Bxb4 {[%emt 0:00:02]} 20. Nf3 {[%emt 0:00:09]} Be7 {[%emt 0:00:03]} 21. g3 {
[%emt 0:00:11]} Ra7 {[%emt 0:00:01]} 22. Nc3 {[%emt 0:00:04]} b5 {[%emt 0:00:
07]} 23. Be4 {[%emt 0:00:06]} b4 {[%emt 0:00:04]} 24. Na4 {[%emt 0:00:01]} Rc8
{[%emt 0:00:25]} 25. Rc1 {[%emt 0:00:06]} Bxe4 {[%emt 0:00:06]} 26. Qxe4 {
[%emt 0:00:01]} Rac7 {[%emt 0:00:00]} 27. Rxc7 {[%emt 0:00:03]} Qxc7 {[%emt 0:
00:01]} 28. b3 {[%emt 0:00:01]} Nd7 {[%emt 0:00:04]} 29. Kg2 {[%emt 0:00:01]}
Nc5 {[%emt 0:00:12]} 30. Qxb4 {[%emt 0:00:17]} Nd3 {[%emt 0:00:13]} 31. Qd2 {
[%emt 0:00:05]} Rd8 {[%emt 0:00:07]} 32. Qe2 {[%emt 0:00:05]} h5 {[%emt 0:00:
50]} 33. Nb2 {[%emt 0:00:02]} Nxb2 {[%emt 0:00:14]} 34. Qxb2 {[%emt 0:00:02]}
Bb4 {[%emt 0:00:05]} 35. Qe2 {[%emt 0:00:01]} a5 {[%emt 0:00:06]} 36. Rd1 {
[%emt 0:00:02]} Rc8 {[%emt 0:00:01]} 37. Rd3 {[%emt 0:00:12]} g6 {[%emt 0:00:
09]} 38. Kh3 {[%emt 0:00:00]} Kg7 {[%emt 0:00:01]} 39. Ng5 {[%emt 0:00:01]} Be7
{[%emt 0:00:07]} 40. Nf3 {[%emt 0:00:01]} Qb7 {[%emt 0:00:05]} 41. Qd1 {
[%emt 0:00:01]} Rc7 {[%emt 0:00:01]} 42. a4 {[%emt 0:00:02]} Qe4 {[%emt 0:00:
03]} 43. Rd4 {[%emt 0:00:02]} Qf5+ {[%emt 0:00:03]} 44. Kg2 {[%emt 0:00:01]}
Rc3 {[%emt 0:00:04]} 45. Qe2 {[%emt 0:00:06]} Rxb3 {[%emt 0:00:05]} 46. Qe4 {
[%emt 0:00:05]} Rb2+ {[%emt 0:00:03]} 47. Kf1 {[%emt 0:00:05]} Qh3+ {[%emt 0:
00:02]} 0-1

[Event "10th Tal Memorial 2016 - Blitz"]
[Site "Moscow"]
[Date "2016.09.25"]
[Round "9"]
[White "Li, Chao b"]
[Black "Mamedyarov, Shakhriyar"]
[Result "0-1"]
[ECO "A05"]
[WhiteElo "2746"]
[BlackElo "2761"]
[Annotator "ChessBase"]
[PlyCount "117"]
[EventDate "2016.??.??"]
[EventType "tourn"]
[EventCountry "RUS"]
[SourceTitle "playchess.com"]
[Source "ChessBase"]
[TimeControl "180+2"]

1. Nf3 {[%emt 0:00:00]} Nf6 {[%emt 0:00:00]} 2. g3 {[%emt 0:00:01]} g6 {
[%emt 0:00:00]} 3. Bg2 {[%emt 0:00:01]} Bg7 {[%emt 0:00:01]} 4. O-O {[%emt 0:
00:03]} O-O {[%emt 0:00:01]} 5. d4 {[%emt 0:00:02]} d6 {[%emt 0:00:02]} 6. b3 {
[%emt 0:00:01]} e5 {[%emt 0:00:05]} 7. dxe5 {[%emt 0:00:02]} dxe5 {[%emt 0:00:
01]} 8. Bb2 {[%emt 0:00:05]} e4 {[%emt 0:00:03]} 9. Qxd8 {[%emt 0:00:03]} Rxd8
{[%emt 0:00:01]} 10. Nfd2 {[%emt 0:00:15]} Bf5 {[%emt 0:00:14]} 11. Nc4 {
[%emt 0:00:02]} Nc6 {[%emt 0:00:08]} 12. Nc3 {[%emt 0:00:02]} Nd4 {[%emt 0:00:
15]} 13. Ne3 {[%emt 0:00:15]} Ng4 {[%emt 0:00:09]} 14. Nxg4 {[%emt 0:00:25]}
Bxg4 {[%emt 0:00:01]} 15. Bxe4 {[%emt 0:00:10]} Nxe2+ {[%emt 0:00:12]} 16. Nxe2
{[%emt 0:00:02]} Bxb2 {[%emt 0:00:15]} 17. Rae1 {[%emt 0:00:03]} c6 {[%emt 0:
00:10]} 18. Nf4 {[%emt 0:00:06]} Bc3 {[%emt 0:00:02]} 19. Re3 {[%emt 0:00:04]}
Bd2 {[%emt 0:00:02]} 20. Rd3 {[%emt 0:00:01]} Bxf4 21. gxf4 {[%emt 0:00:07]}
Be2 {[%emt 0:00:18]} 22. Rxd8+ {[%emt 0:00:05]} Rxd8 {[%emt 0:00:01]} 23. Re1 {
[%emt 0:00:00]} Rd2 {[%emt 0:00:01]} 24. f5 {[%emt 0:00:08]} Kg7 {[%emt 0:00:
04]} 25. Kg2 {[%emt 0:00:08]} Kf6 {[%emt 0:00:07]} 26. fxg6 {[%emt 0:00:01]}
hxg6 {[%emt 0:00:01]} 27. Kg3 {[%emt 0:00:12]} Bd1 {[%emt 0:00:19]} 28. Kf4 {
[%emt 0:00:23]} Bxc2 {[%emt 0:00:27]} 29. Ke3 {[%emt 0:00:12]} Rd1 {[%emt 0:00:
02]} 30. Rxd1 {[%emt 0:00:05]} Bxd1 {[%emt 0:00:00]} 31. f3 {[%emt 0:00:01]}
Ke5 {[%emt 0:00:02]} 32. h4 {[%emt 0:00:16]} f5 {[%emt 0:00:06]} 33. Bd3 {
[%emt 0:00:00]} a5 {[%emt 0:00:07]} 34. Bc4 {[%emt 0:00:02]} a4 {[%emt 0:00:13]
} 35. Bf7 {[%emt 0:00:08]} f4+ {[%emt 0:00:14]} 36. Kd2 {[%emt 0:00:12]} Bxf3 {
[%emt 0:00:08]} 37. Bxg6 {[%emt 0:00:01]} Be4 {[%emt 0:00:04]} 38. Bf7 {
[%emt 0:00:21]} axb3 {[%emt 0:00:03]} 39. axb3 {[%emt 0:00:01]} Bd5 {[%emt 0:
00:02]} 40. Be8 {[%emt 0:00:05]} Bxb3 {[%emt 0:00:03]} 41. h5 {[%emt 0:00:02]}
Be6 {[%emt 0:00:04]} 42. h6 {[%emt 0:00:08]} Bf5 {[%emt 0:00:02]} 43. Bd7 {
[%emt 0:00:02]} Bh7 {[%emt 0:00:02]} 44. Ke2 {[%emt 0:00:02]} c5 {[%emt 0:00:
05]} 45. Bb5 {[%emt 0:00:02]} Kf6 {[%emt 0:00:08]} 46. Kf3 {[%emt 0:00:01]} Kg5
{[%emt 0:00:01]} 47. Bc4 {[%emt 0:00:01]} b6 48. Bb5 {[%emt 0:00:01]} Bg6 {
[%emt 0:00:06]} 49. Bc4 Bh7 {[%emt 0:00:01]} 50. Bb5 {[%emt 0:00:03]} Bf5 {
[%emt 0:00:00]} 51. Bc4 {[%emt 0:00:01]} Bg6 {[%emt 0:00:02]} 52. Bb5 {[%emt 0:
00:05]} Bh5+ {[%emt 0:00:01]} 53. Ke4 {[%emt 0:00:00]} f3 {[%emt 0:00:01]} 54.
h7 {[%emt 0:00:02]} Bg6+ {[%emt 0:00:00]} 55. Kxf3 {[%emt 0:00:01]} Bxh7 {
[%emt 0:00:01]} 56. Ke3 {[%emt 0:00:02]} Kf6 {[%emt 0:00:01]} 57. Kd2 {[%emt 0:
00:05]} Ke5 {[%emt 0:00:02]} 58. Kc3 {[%emt 0:00:01]} Be4 {[%emt 0:00:01]} 59.
Bd7 {[%emt 0:00:01]} 0-1